[Event "SVK ECo-C Extraliga 2018-19"]
[Site "Slovakia"]
[Date "2019.04.12"]
[Round "9.2"]
[White "Babula, Vlastimil"]
[Black "Zilka, Stepan"]
[Result "1/2-1/2"]
[ECO "E53"]
[WhiteElo "2549"]
[BlackElo "2534"]
[Annotator "ChessBase"]
[PlyCount "87"]
[EventDate "2018.11.10"]
[EventType "team-tourn"]
[EventCountry "SVK"]
[SourceTitle "playchess.com"]
[Source "ChessBase"]
[SourceQuality "1"]
[WhiteTeam "Snina"]
[BlackTeam "Prakovce"]
[TimeControl "40/5400+30:1800+30"]

1. d4 {[%emt 0:00:00]} Nf6 {[%emt 0:00:00]} 2. c4 {[%emt 0:00:00]} e6 {[%emt 0:00:00]} 3. Nc3 {[%emt 0:00:20]} Bb4 {[%emt 0:00:01]} 4. e3 {[%emt 0:00:42]} O-O {[%emt 0:00:12]} 5. Bd3 {[%emt 0:00:28]} d5 {[%emt 0:00:31]} 6. Nf3 {[%emt 0:00:31]} c5 {[%emt 0:00:06]} 7. cxd5 {[%emt 0:01:06]} exd5 {[%emt 0:01:35]} 8. dxc5 {[%emt 0:00:37]} Bxc5 {[%emt 0:01:22]} 9. h3 {[%emt 0:02:57]} Nc6 {[%emt 0:00:37]} 10. O-O {[%emt 0:00:35]} a6 {[%emt 0:06:21]} 11. b3 {[%emt 0:01:16]} Re8 {[%emt 0:04:54]} 12. Bb2 {[%emt 0:01:17]} Qd6 {[%emt 0:06:37]} 13. Rc1 {[%emt 0:04:06]} Bd7 {[%emt 0:05:17]} 14. Ne2 {[%emt 0:19:02]} Ne4 {[%emt 0:00:01]} 15. Nf4 {[%emt 0:04:23]} Rad8 {[%emt 0:08:31]} 16. Bb1 {[%emt 0:13:59]} Bc8 {[%emt 0:12:02]} 17. Nd2 {[%emt 0:10:39]} Ba3 {[%emt 0:16:27]} 18. Qc2 {[%emt 0:14:33]} Bxb2 {[%emt 0:06:22]} 19. Qxb2 {[%emt 0:00:35]} Nxd2 {[%emt 0:07:19]} 20. Qxd2 {[%emt 0:00:07]} d4 {[%emt 0:00:07]} 21. Rfd1 {[%emt 0:03:09]} Qh6 {[%emt 0:04:02]} 22. e4 {[%emt 0:01:34]} d3 {[%emt 0:01:31]} 23. Bxd3 {[%emt 0:06:46]} Ne5 {[%emt 0:03:11]} 24. Nd5 {[%emt 0:01:22]} Qxd2 {[%emt 0:00:55]} 25. Rxd2 {[%emt 0:00:04]} Bxh3 {[%emt 0:00:23]} 26. Rc7 {[%emt 0:02:36]} b5 {[%emt 0:02:00]} 27. a4 {[%emt 0:02:12]} Nxd3 {[%emt 0:03:13]} 28. Rxd3 {[%emt 0:00:29]} Be6 {[%emt 0:00:17]} 29. Ra7 {[%emt 0:03:45]} bxa4 {[%emt 0:04:05]} 30. bxa4 {[%emt 0:00:05]} Bxd5 {[%emt 0:01:34]} 31. Rxd5 {[%emt 0:00:42]} Ra8 {[%emt 0:01:45]} 32. Rxa8 {[%emt 0:01:42]} Rxa8 {[%emt 0:00:01]} 33. Rd6 {[%emt 0:01:11]} g5 {[%emt 0:00:51]} 34. f3 {[%emt 0:00:51]} a5 {[%emt 0:00:36]} 35. Rd5 {[%emt 0:00:35]} f6 {[%emt 0:01:20]} 36. g4 {[%emt 0:01:16]} Kf7 {[%emt 0:00:12]} 37. Kf2 {[%emt 0:00:33]} Kg6 {[%emt 0:02:05]} 38. Ke3 {[%emt 0:00:59]} h5 {[%emt 0:00:49]} 39. gxh5+ {[%emt 0:00:10]} Kxh5 {[%emt 0:00:03]} 40. Rf5 {[%emt 0:01:27]} Kg6 {[%emt 0:01:36]} 41. Kd4 {[%emt 0:03:36]} Rb8 {[%emt 0:04:01]} 42. Rb5 {[%emt 0:06:35]} Rd8+ {[%emt 0:00:04]} 43. Kc4 {[%emt 0:04:26]} Rc8+ {[%emt 0:00:03]} 44. Kd4 {[%emt 0:02:56]} 1/2-1/2

[Event "SVK ECo-C Extraliga 2018-19"]
[Site "Slovakia"]
[Date "2019.04.12"]
[Round "9.2"]
[White "Gazik, Viktor"]
[Black "Jakab, Bela"]
[Result "1-0"]
[ECO "A11"]
[WhiteElo "2511"]
[BlackElo "2324"]
[Annotator "ChessBase"]
[PlyCount "75"]
[EventDate "2018.11.10"]
[EventType "team-tourn"]
[EventCountry "SVK"]
[SourceTitle "playchess.com"]
[Source "ChessBase"]
[SourceQuality "1"]
[WhiteTeam "Podhajska"]
[BlackTeam "Komarno"]
[TimeControl "40/5400+30:1800+30"]

1. c4 {[%emt 0:01:06]} c6 {[%emt 0:00:00]} 2. Nf3 {[%emt 0:01:05]} d5 {[%emt 0:00:07]} 3. g3 {[%emt 0:00:09]} Nf6 {[%emt 0:00:11]} 4. Bg2 {[%emt 0:00:12]} g6 {[%emt 0:00:43]} 5. b3 {[%emt 0:02:00]} Bg7 {[%emt 0:00:16]} 6. Bb2 {[%emt 0:00:07]} O-O {[%emt 0:00:45]} 7. O-O {[%emt 0:00:05]} Re8 {[%emt 0:01:10]} 8. d4 {[%emt 0:04:01]} Bf5 {[%emt 0:02:36]} 9. Nbd2 {[%emt 0:01:44]} Ne4 {[%emt 0:04:46]} 10. Rc1 {[%emt 0:06:18]} Nxd2 {[%emt 0:06:09]} 11. Qxd2 {[%emt 0:15:36]} Be4 {[%emt 0:01:47]} 12. Qf4 {[%emt 0:07:10]} Qd6 {[%emt 0:07:16]} 13. Qe3 {[%emt 0:05:24]} Nd7 {[%emt 0:01:24]} 14. Rfd1 {[%emt 0:00:21]} Rac8 {[%emt 0:03:44]} 15. Bh3 {[%emt 0:01:56]} Bxf3 {[%emt 0:01:57]} 16. exf3 {[%emt 0:09:02]} e6 {[%emt 0:01:38]} 17. f4 {[%emt 0:08:01]} h5 {[%emt 0:04:44]} 18. Bf1 {[%emt 0:01:12]} Qb8 {[%emt 0:06:25]} 19. Ba3 {[%emt 0:06:15]} Bf8 {[%emt 0:03:45]} 20. Bxf8 {[%emt 0:00:11]} Kxf8 {[%emt 0:00:41]} 21. c5 {[%emt 0:02:35]} b6 {[%emt 0:03:52]} 22. b4 {[%emt 0:00:32]} a5 {[%emt 0:00:37]} 23. Rb1 {[%emt 0:06:01]} bxc5 {[%emt 0:05:49]} 24. bxc5 {[%emt 0:02:15]} Qc7 {[%emt 0:00:17]} 25. Rd3 {[%emt 0:07:02]} Rb8 {[%emt 0:00:49]} 26. Re1 {[%emt 0:00:06]} Nf6 {[%emt 0:02:24]} 27. Ra3 {[%emt 0:00:21]} Ng4 {[%emt 0:05:42]} 28. Qe2 {[%emt 0:02:05]} Rb4 {[%emt 0:01:26]} 29. f5 {[%emt 0:02:30]} gxf5 {[%emt 0:06:52]} 30. Qd2 {[%emt 0:00:12]} f4 {[%emt 0:03:54]} 31. h3 {[%emt 0:00:57]} Nf6 {[%emt 0:03:06]} 32. Re5 {[%emt 0:00:13]} fxg3 {[%emt 0:01:07]} 33. Rxg3 {[%emt 0:06:53]} Ke7 {[%emt 0:00:59]} 34. Qf4 {[%emt 0:00:40]} Qb8 {[%emt 0:13:40]} 35. Rf3 {[%emt 0:00:20]} Rg8+ {[%emt 0:00:46]} 36. Kh2 {[%emt 0:00:21]} Rg6 {[%emt 0:00:58]} 37. Bd3 {[%emt 0:00:11]} Rxd4 {[%emt 0:02:34]} 38. Rxe6+ {[%emt 0:00:07]} 1-0

[Event "SVK ECo-C Extraliga 2018-19"]
[Site "Slovakia"]
[Date "2019.04.12"]
[Round "9.2"]
[White "Vykouk, Jan"]
[Black "Martinovic, Sasa"]
[Result "1/2-1/2"]
[ECO "B58"]
[WhiteElo "2441"]
[BlackElo "2555"]
[Annotator "ChessBase"]
[PlyCount "63"]
[EventDate "2018.11.10"]
[EventType "team-tourn"]
[EventCountry "SVK"]
[SourceTitle "playchess.com"]
[Source "ChessBase"]
[SourceQuality "1"]
[WhiteTeam "Osuske"]
[BlackTeam "Modra"]
[TimeControl "40/5400+30:1800+30"]

1. e4 {[%emt 0:00:00]} c5 {[%emt 0:00:00]} 2. Nf3 {[%emt 0:00:00]} d6 {[%emt 0:00:00]} 3. d4 {[%emt 0:00:00]} cxd4 {[%emt 0:00:00]} 4. Nxd4 {[%emt 0:00:00]} Nf6 {[%emt 0:00:00]} 5. Nc3 {[%emt 0:00:01]} Nc6 {[%emt 0:00:00]} 6. Be2 {[%emt 0:00:37]} e5 {[%emt 0:00:00]} 7. Nf3 {[%emt 0:00:06]} h6 {[%emt 0:00:02]} 8. O-O {[%emt 0:01:17]} Be7 {[%emt 0:00:05]} 9. Nd2 {[%emt 0:00:20]} d5 {[%emt 0:06:03]} 10. exd5 {[%emt 0:00:33]} Nxd5 {[%emt 0:00:04]} 11. Nxd5 {[%emt 0:00:07]} Qxd5 {[%emt 0:00:02]} 12. Bf3 {[%emt 0:01:41]} Qe6 {[%emt 0:05:54]} 13. Re1 {[%emt 0:01:13]} O-O {[%emt 0:03:30]} 14. c3 {[%emt 0:00:42]} Rd8 {[%emt 0:08:38]} 15. Qe2 {[%emt 0:00:56]} Bd7 {[%emt 0:04:58]} 16. Nc4 {[%emt 0:03:50]} Bf6 {[%emt 0:03:57]} 17. Bd2 {[%emt 0:06:01]} b5 {[%emt 0:26:43]} 18. Ne3 {[%emt 0:00:18]} e4 {[%emt 0:00:19]} 19. Bg4 {[%emt 0:00:08]} Qe5 {[%emt 0:00:11]} 20. Bxd7 {[%emt 0:01:00]} Rxd7 {[%emt 0:00:05]} 21. Ng4 {[%emt 0:00:09]} Qe6 {[%emt 0:04:07]} 22. Bf4 {[%emt 0:10:05]} Bh4 {[%emt 0:17:09]} 23. Qxb5 {[%emt 0:04:07]} Qxg4 {[%emt 0:05:36]} 24. Qxc6 {[%emt 0:00:17]} Bxf2+ {[%emt 0:00:08]} 25. Kxf2 {[%emt 0:00:07]} Qxf4+ {[%emt 0:00:06]} 26. Kg1 {[%emt 0:00:04]} Rad8 {[%emt 0:00:47]} 27. Qxe4 {[%emt 0:00:15]} Qxe4 {[%emt 0:00:33]} 28. Rxe4 {[%emt 0:00:07]} Rd2 {[%emt 0:00:01]} 29. Rae1 {[%emt 0:15:03]} Rxb2 {[%emt 0:00:07]} 30. Re8+ {[%emt 0:00:04]} Rxe8 {[%emt 0:00:02]} 31. Rxe8+ {[%emt 0:00:06]} Kh7 {[%emt 0:00:01]} 32. Re7 {[%emt 0:00:17]} 1/2-1/2

[Event "SVK ECo-C Extraliga 2018-19"]
[Site "Slovakia"]
[Date "2019.04.12"]
[Round "9.2"]
[White "Hrabusa, Matej"]
[Black "Repka, Christopher"]
[Result "0-1"]
[ECO "D00"]
[WhiteElo "2406"]
[BlackElo "2482"]
[Annotator "ChessBase"]
[PlyCount "70"]
[EventDate "2018.11.10"]
[EventType "team-tourn"]
[EventCountry "SVK"]
[SourceTitle "playchess.com"]
[Source "ChessBase"]
[SourceQuality "1"]
[WhiteTeam "Liptovska"]
[BlackTeam "Zilina"]
[TimeControl "40/5400+30:1800+30"]

1. d4 {[%emt 0:00:00]} d5 {[%emt 0:00:00]} 2. Bf4 {[%emt 0:00:00]} Nf6 {[%emt 0:01:07]} 3. e3 {[%emt 0:00:00]} Bf5 {[%emt 0:00:18]} 4. Nf3 {[%emt 0:04:59]} e6 {[%emt 0:00:22]} 5. Be2 {[%emt 0:00:54]} Bd6 {[%emt 0:00:31]} 6. Bg3 {[%emt 0:02:53]} Ne4 {[%emt 0:02:22]} 7. Nbd2 {[%emt 0:00:44]} Nxg3 {[%emt 0:00:35]} 8. hxg3 {[%emt 0:00:10]} h6 {[%emt 0:00:03]} 9. Ne5 {[%emt 0:02:34]} Nd7 {[%emt 0:00:45]} 10. Ndf3 {[%emt 0:02:54]} Be4 {[%emt 0:00:46]} 11. Nxd7 {[%emt 0:06:48]} Qxd7 {[%emt 0:00:05]} 12. Bd3 {[%emt 0:00:39]} O-O-O {[%emt 0:04:49]} 13. c3 {[%emt 0:07:31]} f5 {[%emt 0:00:31]} 14. Qc2 {[%emt 0:04:25]} c5 {[%emt 0:01:09]} 15. dxc5 {[%emt 0:02:28]} Bxc5 {[%emt 0:00:06]} 16. O-O-O {[%emt 0:00:59]} Kb8 {[%emt 0:03:33]} 17. Kb1 {[%emt 0:03:47]} Rhe8 {[%emt 0:00:10]} 18. c4 {[%emt 0:12:16]} Rc8 {[%emt 0:09:32]} 19. Bxe4 {[%emt 0:08:44]} fxe4 {[%emt 0:00:06]} 20. Nd2 {[%emt 0:00:33]} Bd6 {[%emt 0:13:17]} 21. Qb3 {[%emt 0:03:55]} Qf7 {[%emt 0:00:12]} 22. cxd5 {[%emt 0:07:39]} exd5 {[%emt 0:00:37]} 23. f3 {[%emt 0:00:09]} exf3 {[%emt 0:02:55]} 24. Nxf3 {[%emt 0:00:37]} Bxg3 {[%emt 0:01:01]} 25. Rxd5 {[%emt 0:01:28]} Rxe3 {[%emt 0:00:35]} 26. Qxe3 {[%emt 0:03:31]} Qxd5 {[%emt 0:01:07]} 27. Rc1 {[%emt 0:01:30]} Rd8 {[%emt 0:00:03]} 28. Ka1 {[%emt 0:04:12]} g5 {[%emt 0:00:19]} 29. Qe7 {[%emt 0:04:47]} Bf4 {[%emt 0:02:47]} 30. Rb1 {[%emt 0:00:13]} Rc8 {[%emt 0:01:36]} 31. Qg7 {[%emt 0:01:52]} h5 {[%emt 0:00:59]} 32. Qh6 {[%emt 0:01:12]} Qe4 {[%emt 0:01:53]} 33. a3 {[%emt 0:02:31]} g4 {[%emt 0:00:37]} 34. Qxh5 {[%emt 0:00:10]} gxf3 {[%emt 0:00:08]} 35. gxf3 {[%emt 0:01:40]} Qd4 {[%emt 0:00:15]} 0-1

[Event "SVK ECo-C Extraliga 2018-19"]
[Site "Slovakia"]
[Date "2019.04.12"]
[Round "9.3"]
[White "Antal, Gergely"]
[Black "Nemeth, Miklos"]
[Result "1-0"]
[ECO "B29"]
[WhiteElo "2552"]
[BlackElo "2488"]
[Annotator "ChessBase"]
[PlyCount "91"]
[EventDate "2018.11.10"]
[EventType "team-tourn"]
[EventCountry "SVK"]
[SourceTitle "playchess.com"]
[Source "ChessBase"]
[SourceQuality "1"]
[WhiteTeam "Slovan"]
[BlackTeam "Streda"]
[TimeControl "40/5400+30:1800+30"]

1. e4 {[%emt 0:00:00]} c5 {[%emt 0:00:00]} 2. Nf3 {[%emt 0:00:00]} Nf6 {[%emt 0:00:00]} 3. e5 {[%emt 0:00:30]} Nd5 {[%emt 0:00:00]} 4. Nc3 {[%emt 0:00:17]} Nxc3 {[%emt 0:00:01]} 5. dxc3 {[%emt 0:00:09]} e6 {[%emt 0:02:56]} 6. Bf4 {[%emt 0:00:53]} h6 {[%emt 0:03:06]} 7. h4 {[%emt 0:01:16]} Qb6 {[%emt 0:01:03]} 8. b3 {[%emt 0:10:49]} Qc7 {[%emt 0:01:57]} 9. Bd3 {[%emt 0:00:48]} Nc6 {[%emt 0:00:50]} 10. Qe2 {[%emt 0:04:14]} d5 {[%emt 0:03:23]} 11. exd6 {[%emt 0:00:17]} Bxd6 {[%emt 0:00:06]} 12. Bxd6 {[%emt 0:00:06]} Qxd6 {[%emt 0:00:04]} 13. Qe3 {[%emt 0:05:45]} Bd7 {[%emt 0:05:03]} 14. O-O-O {[%emt 0:03:25]} Qe7 {[%emt 0:05:10]} 15. Be4 {[%emt 0:05:46]} O-O {[%emt 0:20:35]} 16. g4 {[%emt 0:02:52]} a5 {[%emt 0:11:14]} 17. g5 {[%emt 0:03:37]} h5 {[%emt 0:01:55]} 18. g6 {[%emt 0:12:12]} fxg6 {[%emt 0:02:20]} 19. Rhg1 {[%emt 0:04:02]} Rf6 {[%emt 0:07:01]} 20. Rxg6 {[%emt 0:05:49]} Rxg6 {[%emt 0:02:24]} 21. Bxg6 {[%emt 0:00:05]} Be8 {[%emt 0:00:15]} 22. Bd3 {[%emt 0:01:29]} Rd8 {[%emt 0:14:32]} 23. Ng5 {[%emt 0:07:01]} Rd6 {[%emt 0:06:51]} 24. Rg1 {[%emt 0:03:03]} e5 {[%emt 0:03:47]} 25. Ne4 {[%emt 0:01:15]} Rg6 {[%emt 0:00:27]} 26. Ng3 {[%emt 0:06:04]} Qxh4 {[%emt 0:03:10]} 27. Bxg6 {[%emt 0:01:02]} Bxg6 {[%emt 0:00:03]} 28. Qxc5 {[%emt 0:01:52]} Qg4 {[%emt 0:01:31]} 29. Qd5+ {[%emt 0:02:36]} Kh7 {[%emt 0:00:34]} 30. Rh1 {[%emt 0:04:14]} Qf4+ {[%emt 0:00:03]} 31. Qd2 {[%emt 0:00:18]} Kh6 {[%emt 0:00:07]} 32. Qxf4+ {[%emt 0:08:02]} exf4 {[%emt 0:00:03]} 33. Ne2 {[%emt 0:00:04]} f3 {[%emt 0:00:16]} 34. Nd4 {[%emt 0:00:04]} Ne5 {[%emt 0:01:57]} 35. Re1 {[%emt 0:00:24]} Ng4 {[%emt 0:00:30]} 36. Nxf3 {[%emt 0:00:22]} Nxf2 {[%emt 0:00:10]} 37. Re6 {[%emt 0:00:13]} Kh7 {[%emt 0:00:23]} 38. c4 {[%emt 0:02:11]} Nh3 {[%emt 0:01:08]} 39. c5 {[%emt 0:01:31]} Bf7 {[%emt 0:02:32]} 40. Rd6 {[%emt 0:01:13]} Be8 {[%emt 0:00:33]} 41. Ne5 {[%emt 0:33:42]} h4 {[%emt 0:31:50]} 42. Kd2 {[%emt 0:00:00]} Ng5 {[%emt 0:00:00]} 43. Ke3 {[%emt 0:00:00]} h3 {[%emt 0:00:00]} 44. Rd4 {[%emt 0:00:00]} Kg8 {[%emt 0:00:00]} 45. Rh4 {[%emt 0:00:00]} Kf8 {[%emt 0:00:00]} 46. Nf3 {[%emt 0:00:00]} 1-0

[Event "SVK ECo-C Extraliga 2018-19"]
[Site "Slovakia"]
[Date "2019.04.12"]
[Round "9.3"]
[White "Leniart, Arkadiusz"]
[Black "Markos, Jan"]
[Result "1/2-1/2"]
[ECO "E21"]
[WhiteElo "2486"]
[BlackElo "2571"]
[Annotator "ChessBase"]
[PlyCount "78"]
[EventDate "2018.11.10"]
[EventType "team-tourn"]
[EventCountry "SVK"]
[SourceTitle "playchess.com"]
[Source "ChessBase"]
[SourceQuality "1"]
[WhiteTeam "Prakovce"]
[BlackTeam "Snina"]
[TimeControl "40/5400+30:1800+30"]

1. d4 {[%emt 0:00:00]} Nf6 {[%emt 0:00:00]} 2. c4 {[%emt 0:00:00]} e6 {[%emt 0:00:00]} 3. Nc3 {[%emt 0:00:00]} Bb4 {[%emt 0:00:00]} 4. Nf3 {[%emt 0:00:00]} b6 {[%emt 0:01:51]} 5. Bg5 {[%emt 0:00:00]} Bb7 {[%emt 0:01:34]} 6. Qc2 {[%emt 0:00:00]} a5 {[%emt 0:05:41]} 7. e3 {[%emt 0:02:50]} h6 {[%emt 0:00:35]} 8. Bh4 {[%emt 0:00:56]} d6 {[%emt 0:01:48]} 9. O-O-O {[%emt 0:07:23]} a4 {[%emt 0:13:59]} 10. a3 {[%emt 0:01:02]} Bxc3 {[%emt 0:00:08]} 11. Qxc3 {[%emt 0:00:10]} Nbd7 {[%emt 0:08:52]} 12. Bd3 {[%emt 0:03:46]} Ra5 {[%emt 0:04:45]} 13. Rhg1 {[%emt 0:16:49]} g5 {[%emt 0:04:36]} 14. Bg3 {[%emt 0:00:07]} Ne4 {[%emt 0:00:10]} 15. Qc2 {[%emt 0:06:32]} f5 {[%emt 0:04:37]} 16. Nd2 {[%emt 0:02:33]} Nxg3 {[%emt 0:09:22]} 17. hxg3 {[%emt 0:00:18]} Qf6 {[%emt 0:00:56]} 18. Nb1 {[%emt 0:07:24]} O-O {[%emt 0:04:35]} 19. Nc3 {[%emt 0:00:06]} c5 {[%emt 0:01:36]} 20. d5 {[%emt 0:05:11]} exd5 {[%emt 0:00:22]} 21. cxd5 {[%emt 0:01:31]} Ne5 {[%emt 0:02:37]} 22. Bb5 {[%emt 0:04:09]} Ba6 {[%emt 0:01:43]} 23. Bxa6 {[%emt 0:02:28]} Rxa6 {[%emt 0:00:25]} 24. f4 {[%emt 0:02:37]} Ng4 {[%emt 0:07:03]} 25. Rge1 {[%emt 0:01:53]} b5 {[%emt 0:04:30]} 26. Nxb5 {[%emt 0:01:37]} Rb6 {[%emt 0:00:33]} 27. Nc3 {[%emt 0:00:59]} Rfb8 {[%emt 0:00:08]} 28. Nxa4 {[%emt 0:01:53]} Rb3 {[%emt 0:08:05]} 29. Rd3 {[%emt 0:01:57]} Rxd3 {[%emt 0:05:11]} 30. Qxd3 {[%emt 0:00:09]} Nf2 {[%emt 0:00:01]} 31. Qc2 {[%emt 0:01:02]} Ne4 {[%emt 0:00:07]} 32. g4 {[%emt 0:08:59]} gxf4 {[%emt 0:00:50]} 33. gxf5 {[%emt 0:12:33]} Qh4 {[%emt 0:01:29]} 34. Qe2 {[%emt 0:00:32]} Re8 {[%emt 0:02:32]} 35. Kc2 {[%emt 0:06:50]} fxe3 {[%emt 0:01:49]} 36. g4 {[%emt 0:01:48]} Qf2 {[%emt 0:03:10]} 37. Qxf2 {[%emt 0:01:07]} Nxf2 {[%emt 0:00:08]} 38. Nb6 {[%emt 0:00:36]} Nxg4 {[%emt 0:00:13]} 39. Nc4 {[%emt 0:00:49]} h5 {[%emt 0:01:23]} 1/2-1/2

[Event "SVK ECo-C Extraliga 2018-19"]
[Site "Slovakia"]
[Date "2019.04.12"]
[Round "9.3"]
[White "Petrik, Tomas"]
[Black "Rojicek, Vojtech"]
[Result "0-1"]
[ECO "C07"]
[WhiteElo "2475"]
[BlackElo "2386"]
[Annotator "ChessBase"]
[PlyCount "132"]
[EventDate "2018.11.10"]
[EventType "team-tourn"]
[EventCountry "SVK"]
[SourceTitle "playchess.com"]
[Source "ChessBase"]
[SourceQuality "1"]
[WhiteTeam "Zilina"]
[BlackTeam "Liptovska"]
[TimeControl "40/5400+30:1800+30"]

1. e4 {[%emt 0:00:04]} e6 {[%emt 0:00:12]} 2. d4 {[%emt 0:00:37]} d5 {[%emt 0:00:04]} 3. Nd2 {[%emt 0:00:48]} c5 {[%emt 0:00:36]} 4. Ngf3 {[%emt 0:03:03]} cxd4 {[%emt 0:00:56]} 5. exd5 {[%emt 0:01:01]} Qxd5 {[%emt 0:00:13]} 6. Bc4 {[%emt 0:00:15]} Qd6 {[%emt 0:00:07]} 7. O-O {[%emt 0:00:22]} Nf6 {[%emt 0:00:35]} 8. Re1 {[%emt 0:09:56]} Nc6 {[%emt 0:01:21]} 9. Ne4 {[%emt 0:03:00]} Nxe4 {[%emt 0:10:33]} 10. Rxe4 {[%emt 0:00:08]} Qc5 {[%emt 0:00:46]} 11. Bb3 {[%emt 0:12:48]} Bd7 {[%emt 0:17:16]} 12. Nxd4 {[%emt 0:06:03]} Nxd4 {[%emt 0:00:11]} 13. Rxd4 {[%emt 0:00:58]} Bc6 {[%emt 0:00:24]} 14. Be3 {[%emt 0:03:48]} Qa5 {[%emt 0:04:43]} 15. Qg4 {[%emt 0:20:48]} Qe5 {[%emt 0:16:09]} 16. Re1 {[%emt 0:15:41]} Bc5 {[%emt 0:05:36]} 17. Rdd1 {[%emt 0:05:03]} Bxe3 {[%emt 0:07:41]} 18. Rxe3 {[%emt 0:00:06]} Qf6 {[%emt 0:00:06]} 19. Bxe6 {[%emt 0:02:34]} O-O {[%emt 0:00:02]} 20. Bb3 {[%emt 0:00:24]} Qxb2 {[%emt 0:00:39]} 21. c3 {[%emt 0:00:07]} Rad8 {[%emt 0:00:44]} 22. Bxf7+ {[%emt 0:03:03]} Kh8 {[%emt 0:00:01]} 23. Rxd8 {[%emt 0:00:32]} Rxd8 {[%emt 0:00:03]} 24. h4 {[%emt 0:00:31]} Qc1+ {[%emt 0:06:13]} 25. Kh2 {[%emt 0:00:06]} Qd2 {[%emt 0:00:12]} 26. Rg3 {[%emt 0:05:30]} Qh6 {[%emt 0:00:02]} 27. Bb3 {[%emt 0:01:16]} Qf6 {[%emt 0:00:33]} 28. Bc2 {[%emt 0:01:11]} Rd2 {[%emt 0:03:55]} 29. Qc8+ {[%emt 0:00:57]} Rd8 {[%emt 0:00:02]} 30. Qg4 {[%emt 0:00:05]} Rd2 {[%emt 0:00:05]} 31. Rd3 {[%emt 0:03:13]} Rxd3 {[%emt 0:00:19]} 32. Bxd3 {[%emt 0:00:02]} g6 {[%emt 0:01:16]} 33. Qd4 {[%emt 0:01:28]} Qxd4 {[%emt 0:05:43]} 34. cxd4 {[%emt 0:00:02]} b5 {[%emt 0:00:37]} 35. Kg3 {[%emt 0:00:06]} Kg7 {[%emt 0:00:39]} 36. Kf4 {[%emt 0:01:46]} Bxg2 {[%emt 0:01:15]} 37. Bxb5 {[%emt 0:00:26]} Bd5 {[%emt 0:00:05]} 38. a3 {[%emt 0:00:40]} Kf6 {[%emt 0:00:02]} 39. Bd3 {[%emt 0:00:29]} h6 {[%emt 0:01:02]} 40. Be4 {[%emt 0:00:19]} g5+ {[%emt 0:02:48]} 41. hxg5+ {[%emt 0:10:27]} hxg5+ {[%emt 0:00:00]} 42. Ke3 {[%emt 0:00:22]} Ba2 {[%emt 0:00:00]} 43. Kd2 {[%emt 0:07:55]} Ke6 {[%emt 0:01:03]} 44. Kc3 {[%emt 0:00:08]} a5 {[%emt 0:00:08]} 45. Bc2 {[%emt 0:06:23]} Kd5 {[%emt 0:00:02]} 46. f3 {[%emt 0:06:15]} Kd6 {[%emt 0:03:07]} 47. Bb3 {[%emt 0:00:02]} Bb1 {[%emt 0:00:06]} 48. Kc4 {[%emt 0:00:20]} Bg6 {[%emt 0:00:18]} 49. Kb5 {[%emt 0:02:31]} Bh5 {[%emt 0:01:22]} 50. Bd1 {[%emt 0:00:02]} Kd5 {[%emt 0:00:05]} 51. Kxa5 {[%emt 0:00:04]} Kxd4 {[%emt 0:00:10]} 52. Kb4 {[%emt 0:01:30]} Ke3 {[%emt 0:03:04]} 53. a4 {[%emt 0:00:08]} Kd2 {[%emt 0:00:02]} 54. f4 {[%emt 0:00:47]} g4 {[%emt 0:00:02]} 55. Bb3 {[%emt 0:00:48]} Ke3 {[%emt 0:00:49]} 56. f5 {[%emt 0:00:31]} Ke4 {[%emt 0:00:09]} 57. Bd1 {[%emt 0:00:29]} g3 {[%emt 0:00:26]} 58. Bxh5 {[%emt 0:00:31]} g2 {[%emt 0:00:10]} 59. f6 {[%emt 0:00:28]} g1=Q {[%emt 0:00:09]} 60. f7 {[%emt 0:00:04]} Qd4+ {[%emt 0:00:38]} 61. Kb5 {[%emt 0:00:08]} Qd5+ {[%emt 0:00:19]} 62. Kb6 {[%emt 0:00:22]} Qd6+ {[%emt 0:00:10]} 63. Kb7 {[%emt 0:01:27]} Kd5 {[%emt 0:00:50]} 64. a5 {[%emt 0:00:16]} Kc5 {[%emt 0:00:09]} 65. a6 {[%emt 0:00:45]} Qe7+ {[%emt 0:00:07]} 66. Kc8 {[%emt 0:00:30]} Kb6 {[%emt 0:00:09]} 0-1

[Event "SVK ECo-C Extraliga 2018-19"]
[Site "Slovakia"]
[Date "2019.04.12"]
[Round "9.3"]
[White "Roubalik, Jakub"]
[Black "Antoniewski, Rafal"]
[Result "1/2-1/2"]
[ECO "D38"]
[WhiteElo "2417"]
[BlackElo "2500"]
[Annotator "ChessBase"]
[PlyCount "30"]
[EventDate "2018.11.10"]
[EventType "team-tourn"]
[EventCountry "SVK"]
[SourceTitle "playchess.com"]
[Source "ChessBase"]
[SourceQuality "1"]
[WhiteTeam "Dubnica"]
[BlackTeam "Dunajov"]
[TimeControl "40/5400+30:1800+30"]

1. d4 {[%emt 0:00:00]} Nf6 {[%emt 0:00:04]} 2. c4 {[%emt 0:00:00]} e6 {[%emt 0:00:24]} 3. Nf3 {[%emt 0:00:00]} d5 {[%emt 0:00:26]} 4. Nc3 {[%emt 0:00:00]} Bb4 {[%emt 0:00:53]} 5. cxd5 {[%emt 0:05:14]} exd5 {[%emt 0:00:27]} 6. Bg5 {[%emt 0:00:05]} h6 {[%emt 0:00:07]} 7. Bh4 {[%emt 0:00:07]} Nc6 {[%emt 0:03:31]} 8. e3 {[%emt 0:05:13]} g5 {[%emt 0:04:03]} 9. Bg3 {[%emt 0:00:25]} Ne4 {[%emt 0:00:07]} 10. Nd2 {[%emt 0:06:31]} Nxc3 {[%emt 0:26:14]} 11. bxc3 {[%emt 0:00:19]} Bxc3 {[%emt 0:00:05]} 12. Rc1 {[%emt 0:00:11]} Ba5 {[%emt 0:00:11]} 13. Bb5 {[%emt 0:07:47]} Bd7 {[%emt 0:00:28]} 14. O-O {[%emt 0:01:35]} Ne7 {[%emt 0:02:05]} 15. Bd3 {[%emt 0:19:38]} Bf5 {[%emt 0:13:22]} 1/2-1/2